bitfinex-derivatives/quotes_SOLF0:USTF0_20250207
["timestamp","ask_amount","ask_price","bid_price","bid_amount"]
[1738906508235,0.03784735,193.05,193.04,19.66011991]
[1738906514249,0.03784735,193.05,193.03,5.1792]
[1738906514438,0.03784735,193.05,193.02,0.03279672]
[1738906515246,5.1794,193.03,192.97,14.48121991]
[1738906515646,1.6098,193.04,192.97,14.48121991]
[1738906516351,1.6098,193.04,193.0,14.48121991]
[1738906516744,1.64249254,193.04,193.0,14.48121991]
[1738906517143,1.64249254,193.04,193.0,19.66121991]
[1738906517344,1.64249254,193.04,193.0,14.48121991]
[1738906517743,1.64249254,193.04,192.99,0.0387141]
[1738906518245,6.82139254,193.04,192.99,0.0387141]
[1738906518448,1.64249254,193.04,193.0,14.48121991]
[1738906518841,1.64249254,193.04,193.02,5.1794]
[1738906519142,0.03269254,193.04,193.0,14.48121991]
[1738906519846,0.03269254,193.04,193.0,19.66101991]
[1738906520243,0.03269254,193.04,193.0,14.48121991]
[1738906520445,0.03269254,193.04,192.99,0.0387141]
[1738906520950,5.1795,193.03,192.99,0.0387141]
[1738906521146,0.03269254,193.04,192.99,0.0387141]
[1738906521646,5.1797,193.02,192.99,0.0387141]
[1738906521847,0.03269254,193.04,192.99,0.0387141]
[1738906522245,0.03269254,193.04,192.99,14.51993401]
[1738906523944,0.03269254,193.04,192.99,0.0387141]
[1738906524345,5.1797,193.02,192.99,0.0387141]
[1738906524751,0.03269254,193.04,192.99,0.0387141]
[1738906526752,5.1798,193.01,192.99,0.0387141]
[1738906528250,1.6317,193.03,192.99,0.0387141]
[1738906528454,5.18,193.0,192.99,0.0387141]
[1738906529055,1.6317,193.03,192.99,0.0387141]
[1738906530053,5.18,193.0,192.99,0.0387141]
[1738906530757,1.6317,193.03,192.93,5.1816]
[1738906530959,5.1808,192.98,192.93,5.1816]
[1738906531951,5.1808,192.98,192.94,0.03084146]
[1738906532157,0.03385308,192.97,192.95,5.1811]
[1738906532353,5.1797,193.01,192.95,5.1811]
[1738906532553,0.03668288,192.98,192.95,5.1811]
[1738906532749,0.03668288,192.98,192.97,5.1808]
[1738906532955,1.666,193.06,192.97,14.48121991]
[1738906533156,1.666,193.06,193.0,14.48121991]
[1738906533362,5.1787,193.05,193.0,14.48121991]
[1738906533955,8.3197,193.08,193.02,5.1794]
[1738906534256,0.03729548,193.04,193.03,14.48121991]
[1738906534450,121.27301804,193.09,193.03,14.48121991]
[1738906534649,0.03956081,193.05,193.03,14.48121991]
[1738906537053,121.27301804,193.09,193.03,14.48121991]
[1738906537261,121.27301804,193.09,193.06,14.48121991]
[1738906538153,121.31276259,193.09,193.06,14.51722929]
[1738906538857,121.31276259,193.09,193.06,0.03600938]
[1738906539252,5.1781,193.07,193.06,0.03600938]
[1738906540455,126.49066259,193.09,193.06,0.03600938]
[1738906540657,121.31276259,193.09,193.06,0.03600938]
[1738906541661,121.31276259,193.09,192.93,196.087]
[1738906541662,121.31276259,193.09,192.97,14.48121991]
[1738906541862,121.27301804,193.09,192.94,14.48121991]
[1738906542067,124.97301804,193.09,192.94,14.48121991]
[1738906542256,5.1792,193.03,192.98,5.1805]
[1738906542455,124.97301804,193.09,192.94,14.48121991]
[1738906542764,5.1795,193.03,192.97,19.66181991]
[1738906542966,0.03409953,193.03,193.0,0.03366065]
[1738906543167,0.03409953,193.03,193.0,14.51488056]
[1738906544057,0.03409953,193.03,193.01,5.1797]
[1738906544962,0.03409953,193.03,193.02,5.1795]
[1738906545362,0.03409953,193.03,193.0,14.51488056]
[1738906545560,0.03409953,193.03,193.0,19.69488056]
[1738906545972,0.03409953,193.03,193.0,14.51488056]
[1738906549065,0.03409953,193.03,193.0,19.69488056]
[1738906549463,0.03409953,193.03,193.0,14.51488056]
[1738906550155,0.03409953,193.03,193.0,0.03366065]
[1738906550758,5.21339953,193.03,193.0,0.03366065]
[1738906551865,0.03409953,193.03,193.01,5.1797]
[1738906554070,0.03409953,193.03,193.0,14.51488056]
[1738906555075,5.21339953,193.03,193.0,14.51488056]
[1738906555961,5.1797,193.02,193.0,0.03366065]
[1738906556166,0.03409953,193.03,193.0,0.03366065]
[1738906556670,5.21349953,193.03,193.0,0.03366065]
[1738906559473,5.1795,193.02,193.0,0.03366065]
[1738906560168,5.21329953,193.03,193.0,0.03366065]
[1738906561271,0.03409953,193.03,193.0,5.21346065]
[1738906561462,0.03409953,193.03,193.0,14.51488056]
[1738906562470,0.03409953,193.03,193.02,5.1795]
[1738906565066,5.1779,193.08,193.02,5.1795]
[1738906565266,5.1779,193.08,193.04,14.48121991]
[1738906565672,121.27301804,193.09,193.04,14.48121991]
[1738906565871,121.27301804,193.09,193.04,19.65991991]
[1738906566375,0.03858081,193.08,193.05,0.03317197]
[1738906570784,5.21648081,193.08,193.05,0.03317197]
[1738906572285,0.03858081,193.08,193.05,0.03317197]
[1738906572685,5.1781,193.07,193.05,0.03317197]
[1738906573789,0.03858081,193.08,193.05,0.03317197]
[1738906574694,0.03858081,193.08,193.06,5.1784]
[1738906576693,0.03858081,193.08,193.05,0.03317197]
[1738906577295,5.1784,193.06,193.05,0.03317197]
[1738906579394,5.1781,193.07,193.05,0.03317197]
[1738906579590,0.03858081,193.08,193.05,0.03317197]
[1738906580907,5.1784,193.06,193.05,0.03317197]
[1738906582000,0.03858081,193.08,192.98,14.48121991]
[1738906582205,121.27301804,193.09,192.95,16.15061991]
[1738906582406,121.27301804,193.09,192.95,14.48121991]
[1738906582706,124.93301804,193.09,192.97,5.1808]
[1738906582894,124.93301804,193.09,192.95,14.48121991]
[1738906583101,14.48121991,193.07,192.95,14.48121991]
[1738906583302,0.03536334,193.04,193.0,0.03840578]
[1738906583500,5.1814,192.95,192.9,26.68703235]
[1738906583701,14.48121991,193.01,192.9,21.50433235]
[1738906583903,14.48121991,193.01,192.89,14.48121991]
[1738906584601,0.03890594,192.97,192.93,0.03359754]
[1738906585205,5.1816,192.94,192.93,0.03359754]
[1738906585502,3.1804,192.96,192.87,28.67244313]
[1738906586009,5.1827,192.9,192.87,28.67244313]
[1738906586910,5.21907609,192.9,192.86,14.48121991]
[1738906588107,5.21907609,192.9,192.83,14.48121991]
[1738906588408,5.1833,192.88,192.83,14.48121991]
[1738906588808,5.1835,192.87,192.83,14.48121991]
[1738906589008,0.03637609,192.9,192.83,14.48121991]
[1738906589308,0.03637609,192.9,192.84,5.1842]
[1738906589508,5.21907609,192.9,192.83,14.48121991]
[1738906590613,0.03637609,192.9,192.83,14.48121991]
[1738906591908,5.183,192.89,192.83,19.66551991]
[1738906592109,0.03637609,192.9,192.83,14.48121991]
[1738906592610,5.21927609,192.9,192.84,5.1843]
[1738906592908,0.03637609,192.9,192.84,5.1843]
[1738906593205,0.03637609,192.9,192.83,19.66561991]
[1738906593816,5.1833,192.88,192.83,19.66561991]
[1738906595415,5.183,192.89,192.84,5.1843]
[1738906596111,5.1832,192.88,192.84,5.1843]
[1738906596816,5.183,192.89,192.84,5.1843]
[1738906597717,5.1832,192.88,192.84,5.1843]
[1738906598518,0.03637609,192.9,192.84,5.1843]
[1738906598713,5.183,192.89,192.84,5.1843]
[1738906600314,5.183,192.89,192.83,14.48121991]
[1738906600518,5.183,192.89,192.83,19.66571991]
[1738906601120,0.03637609,192.9,192.84,5.184]
[1738906601317,0.03637609,192.9,192.83,14.48121991]
[1738906601522,0.03637609,192.9,192.86,14.48121991]
[1738906601823,0.03637609,192.9,192.83,14.48121991]
[1738906602120,5.1835,192.88,192.83,14.48121991]
[1738906602328,0.03478375,192.88,192.83,14.48121991]
[1738906602822,0.03478375,192.88,192.86,14.48121991]
[1738906603019,14.48121991,193.04,192.86,14.48121991]
[1738906603219,3.2018,193.02,192.96,19.66201991]
[1738906603521,5.1791,193.04,192.96,14.48121991]
[1738906604020,1.5694,193.05,192.96,14.48121991]
[1738906604322,0.0352033,193.02,192.99,14.48121991]
[1738906604524,0.0352033,193.02,193.0,5.1798]
[1738906605522,0.0352033,193.02,192.99,14.48121991]
[1738906606721,0.0352033,193.02,192.99,19.66151991]
[1738906607126,0.0352033,193.02,192.99,14.48121991]
[1738906607520,0.0352033,193.02,193.0,5.1799]
[1738906608226,0.0352033,193.02,192.99,14.48121991]
[1738906608427,0.0352033,193.02,192.99,19.66141991]
[1738906609427,0.0352033,193.02,193.0,5.18]
[1738906610630,0.0352033,193.02,192.99,14.48121991]
[1738906611527,0.0352033,193.02,192.98,0.03478375]
[1738906612733,5.1798,193.01,192.98,0.03478375]
[1738906616934,0.0352033,193.02,192.98,0.03478375]
[1738906617131,0.0352033,193.02,192.99,14.48121991]
[1738906618028,0.0352033,193.02,192.99,19.66151991]
[1738906618225,0.0352033,193.02,192.99,14.48121991]
[1738906619437,0.0352033,193.02,192.98,0.03478375]
[1738906620437,5.2149033,193.02,192.98,0.03478375]
[1738906621229,0.0352033,193.02,192.98,0.03478375]
[1738906622731,0.0352033,193.02,192.98,5.21528375]
[1738906623137,5.2147033,193.02,192.98,0.03478375]
[1738906623839,5.1798,193.01,192.98,0.03478375]
[1738906624441,5.2148033,193.02,192.98,0.03478375]
[1738906625741,0.0352033,193.02,192.98,0.03478375]
[1738906625942,0.0352033,193.02,192.99,14.48121991]
[1738906626137,12.3793919,193.18,193.0,18.18121991]
[1738906626341,12.3793919,193.18,193.13,19.65771991]
[1738906626644,12.3793919,193.18,193.13,14.48121991]
[1738906626840,21.25098316,193.2,193.1,14.48121991]
[1738906627345,0.03950395,193.17,193.13,0.03288254]
[1738906627943,5.21500395,193.17,193.13,0.03288254]
[1738906629045,0.03950395,193.17,193.13,0.03288254]
[1738906631745,0.03950395,193.17,193.14,5.1762]
[1738906632442,0.03950395,193.17,193.13,0.03288254]
[1738906633244,0.03950395,193.17,193.13,5.20938254]
[1738906634448,0.03950395,193.17,193.13,0.03288254]
[1738906636048,0.03950395,193.17,193.16,14.48121991]
[1738906637349,0.03950395,193.17,193.16,19.65691991]
[1738906637949,0.03950395,193.17,193.16,14.48121991]
[1738906640352,0.03950395,193.17,193.13,14.51410245]
[1738906640650,0.03950395,193.17,193.13,0.03288254]
[1738906641049,5.1759,193.16,193.13,0.03288254]
[1738906641551,5.176,193.15,193.13,0.03288254]
[1738906641757,0.03950395,193.17,193.13,0.03288254]
[1738906642148,5.1758,193.16,193.13,0.03288254]
[1738906644456,0.03950395,193.17,193.13,0.03288254]
[1738906644650,0.03950395,193.17,193.13,14.51410245]
[1738906645649,0.03950395,193.17,193.13,19.69060245]
[1738906645848,0.03950395,193.17,193.13,14.51410245]
[1738906646053,0.03950395,193.17,193.15,5.1759]
[1738906647654,5.1758,193.16,193.13,14.51410245]
[1738906649553,5.176,193.15,193.13,14.51410245]
[1738906650963,5.1758,193.16,193.13,14.51410245]
[1738906651760,0.03950395,193.17,193.14,5.1762]
[1738906651961,0.03950395,193.17,193.13,14.51410245]
[1738906652462,0.03950395,193.17,193.15,5.1757]
[1738906654665,0.03950395,193.17,193.13,14.51410245]
[1738906655162,0.03950395,193.17,193.13,19.69060245]
[1738906655564,0.03950395,193.17,193.13,14.51410245]
[1738906656064,0.03950395,193.17,193.13,0.03288254]
[1738906656561,5.1763,193.14,193.13,0.03288254]
[1738906658462,4.6712,193.16,193.07,14.48121991]
[1738906658966,4.6712,193.16,193.04,14.48121991]
[1738906659467,5.178,193.08,193.04,14.48121991]
[1738906659662,14.48121991,193.15,193.08,0.03275326]
[1738906659864,0.03957339,193.08,193.04,14.48121991]
[1738906660063,14.48121991,193.15,193.1,0.03677728]
[1738906660263,14.48121991,193.15,193.04,14.48121991]
[1738906660466,0.03606696,193.08,193.04,14.48121991]
[1738906660866,5.21396696,193.08,193.04,14.48121991]
[1738906661271,0.03606696,193.08,193.04,14.48121991]
[1738906661566,5.1782,193.07,193.04,14.48121991]
[1738906664163,0.03606696,193.08,193.04,14.48121991]
[1738906665068,5.1782,193.07,193.04,14.48121991]
[1738906669677,0.03606696,193.08,193.01,14.48121991]
[1738906669971,14.48121991,193.12,193.01,14.48121991]
[1738906670377,5.1791,193.04,193.01,14.48121991]
[1738906671673,0.0365272,193.06,193.01,14.48121991]
[1738906671879,5.2149272,193.06,193.01,19.66071991]
[1738906672779,0.0365272,193.06,193.01,14.48121991]
[1738906672980,0.0365272,193.06,193.04,14.48121991]
[1738906674381,5.1787,193.05,193.04,14.48121991]
[1738906674679,0.0365272,193.06,193.01,14.48121991]
[1738906675183,5.1787,193.05,193.01,19.66091991]
[1738906676578,5.1787,193.05,193.04,9.27084975]
[1738906677577,0.0365272,193.06,193.02,9.27084975]
[1738906677780,5.1794,193.03,193.02,9.27084975]
[1738906678779,5.1799,193.01,193.0,9.27084975]
[1738906680683,0.03398869,193.02,192.96,9.27084975]
[1738906680884,9.27084975,193.03,192.96,9.27084975]
[1738906681077,0.03697938,193.01,192.96,9.27084975]
[1738906681476,9.30782913,193.01,192.94,9.27084975]
[1738906681681,4.8581,193.0,192.94,9.27084975]
[1738906681889,0.03604255,192.99,192.94,9.27084975]
[1738906682583,0.03604255,192.99,192.9,14.50265866]
[1738906682783,5.1813,192.95,192.9,19.68535866]
[1738906682978,4.8581,193.0,192.9,14.50265866]
[1738906683289,5.1821,192.93,192.9,14.50265866]
[1738906684586,5.1822,192.92,192.9,14.50265866]
[1738906686685,0.03491627,192.94,192.9,14.50265866]
[1738906686885,0.03491627,192.94,192.93,14.50265866]
[1738906687085,0.03491627,192.94,192.93,19.68455866]
[1738906687491,3.2137,193.0,192.93,14.50265866]
[1738906687784,5.2143,193.05,192.93,14.50265866]
[1738906687990,5.2143,193.05,192.96,14.50265866]
[1738906688382,5.18,193.01,192.96,19.68365866]
[1738906688588,5.18,193.01,192.99,0.03524351]
[1738906688787,0.03759166,193.02,192.99,0.03524351]
[1738906689489,5.21709166,193.02,192.99,0.03524351]
[1738906689984,0.03759166,193.02,192.99,14.53790217]
[1738906691488,5.21709166,193.02,192.99,14.53790217]
[1738906693586,0.03759166,193.02,192.99,14.53790217]
[1738906694084,0.03759166,193.02,193.01,5.1797]
[1738906694486,0.03759166,193.02,192.99,14.53790217]
[1738906700285,0.03759166,193.02,192.99,0.03524351]
[1738906701183,5.18,193.0,192.99,0.03524351]
[1738906701684,0.03759166,193.02,192.99,0.03524351]
[1738906703792,5.18,193.01,192.99,0.03524351]
[1738906704185,0.03759166,193.02,192.99,0.03524351]
[1738906704382,5.18,193.0,192.99,0.03524351]
[1738906708493,5.18,193.0,192.92,1.6094]
[1738906708494,9.27912346,193.0,192.91,9.27912346]
[1738906708695,9.27912346,192.94,192.87,9.27912346]
[1738906709087,5.1826,192.91,192.87,9.27912346]
[1738906709697,5.21825419,192.91,192.87,9.27912346]
[1738906710800,0.03565419,192.91,192.89,9.27912346]
[1738906713303,0.03565419,192.91,192.87,9.27912346]
[1738906713696,0.03565419,192.91,192.89,9.27912346]
[1738906720201,0.03565419,192.91,192.9,5.1827]
[1738906722302,9.27912346,193.04,192.89,9.27912346]
[1738906722502,9.27912346,193.04,192.96,9.27912346]
[1738906722798,5.1805,192.99,192.96,9.27912346]
[1738906723400,5.21906871,192.99,192.96,9.31477765]
[1738906723906,0.03856871,192.99,192.96,9.31477765]
[1738906724804,0.03856871,192.99,192.96,14.49577765]
[1738906727703,0.03856871,192.99,192.98,9.27912346]
[1738906728507,0.03856871,192.99,192.98,14.45962346]
[1738906728907,5.1788,193.05,193.01,5.1797]
[1738906729108,5.1788,193.05,193.02,9.27912346]
[1738906730108,5.2146734,193.05,193.02,9.31284306]
[1738906730808,0.0358734,193.05,193.02,9.31284306]
[1738906731209,0.0358734,193.05,193.04,9.27912346]
[1738906731512,0.0358734,193.05,193.04,14.45802346]
[1738906735818,0.0358734,193.05,193.04,9.27912346]
[1738906737613,0.0358734,193.05,193.04,14.45802346]
[1738906740706,0.0358734,193.05,193.04,9.27912346]
[1738906740912,0.0358734,193.05,193.02,9.31284306]
[1738906741412,0.0358734,193.05,193.02,0.0337196]
[1738906741623,5.1789,193.04,193.02,0.0337196]
[1738906742620,5.1792,193.03,193.02,0.0337196]
[1738906744223,0.0358734,193.05,193.02,9.31284306]
[1738906745022,0.0358734,193.05,193.04,9.27912346]
[1738906747920,0.0358734,193.05,193.02,9.31284306]
[1738906748224,0.0358734,193.05,193.02,0.0337196]
[1738906749724,5.1789,193.04,193.02,0.0337196]
[1738906750629,0.0358734,193.05,193.02,0.0337196]
[1738906750833,5.1792,193.03,193.02,0.0337196]
[1738906751423,5.2147734,193.05,193.02,9.31284306]
[1738906751828,0.0358734,193.05,193.02,9.31284306]
[1738906752433,5.179,193.04,193.02,9.31284306]
[1738906755231,5.2145734,193.05,193.02,9.31284306]
[1738906755442,0.0358734,193.05,193.04,9.27912346]
[1738906758737,0.0358734,193.05,193.04,14.45802346]
[1738906764035,30.53010662,193.2,193.04,9.27912346]
[1738906764332,4.8491,193.19,193.13,9.27912346]
[1738906764532,4.8491,193.19,193.15,9.27912346]
[1738906764533,5.1754,193.18,193.15,9.27912346]
[1738906764835,4.8491,193.19,193.15,9.27912346]
[1738906765034,4.8491,193.19,193.03,4.5813]
[1738906765035,10.024,193.19,193.17,9.27912346]
[1738906765234,10.06065405,193.19,193.17,9.27912346]
[1738906765437,4.88575405,193.19,193.17,9.27912346]
[1738906765926,0.03665405,193.19,193.17,9.27912346]
[1738906767338,0.03665405,193.19,193.18,5.1752]
[1738906768138,0.03665405,193.19,193.17,14.45452346]
[1738906768736,0.03665405,193.19,193.17,14.46128205]
[1738906769238,0.03665405,193.19,193.15,0.03290823]
[1738906769239,5.21165405,193.19,193.15,0.03290823]
[1738906769540,5.1752,193.18,193.15,0.03290823]
[1738906771340,0.03665405,193.19,193.15,0.03290823]
[1738906771543,5.21165405,193.19,193.15,0.03290823]
[1738906771738,0.03665405,193.19,193.15,0.03290823]
[1738906772242,0.03665405,193.19,193.17,5.1752]
[1738906772841,0.03665405,193.19,193.16,5.1757]
[1738906773443,0.03665405,193.19,193.15,0.03290823]
[1738906774248,0.03665405,193.19,193.15,5.20890823]
[1738906774638,0.03665405,193.19,193.15,0.03290823]
[1738906775040,5.1754,193.18,193.15,0.03290823]
[1738906778647,5.1757,193.16,193.15,0.03290823]
[1738906779545,1.5814,193.18,193.08,14.46128205]
[1738906779741,3.1839,193.17,193.08,19.63908205]
[1738906780650,0.03821381,193.14,193.11,0.03370842]
[1738906780853,5.21471381,193.14,193.11,0.03370842]
[1738906781243,0.03821381,193.14,193.11,0.03370842]
[1738906781447,0.03821381,193.14,193.11,14.49499047]
[1738906782250,0.03821381,193.14,193.11,19.67179047]
[1738906788360,0.03821381,193.14,193.11,14.49499047]
[1738906788550,0.03821381,193.14,193.12,5.1768]
[1738906788752,0.03821381,193.14,193.13,9.26008033]
[1738906789254,1.6219,193.22,193.13,9.26008033]
[1738906789457,1.6219,193.22,193.18,9.26008033]
[1738906789856,5.1744,193.21,193.18,9.26008033]
[1738906790055,1.6219,193.22,193.18,9.26008033]
[1738906790256,3.1608,193.23,193.2,9.26008033]
[1738906790457,0.03338875,193.22,193.2,9.26008033]
[1738906791454,5.20748875,193.22,193.2,9.26008033]
[1738906791757,0.03338875,193.22,193.2,9.26008033]
[1738906793760,5.20758875,193.22,193.2,9.26008033]
[1738906794465,5.1748,193.2,193.18,9.29960176]
[1738906794664,5.1748,193.2,193.18,0.03952143]
[1738906795671,0.03338875,193.22,193.18,9.29960176]
[1738906796265,0.03338875,193.22,193.2,9.26008033]
[1738906798568,0.03338875,193.22,193.18,9.29960176]
[1738906798772,9.29346908,193.22,193.18,0.03952143]
[1738906799169,5.1749,193.19,193.18,0.03952143]
[1738906800764,9.26008033,193.2,193.12,9.26008033]
[1738906800968,9.26008033,193.18,193.12,9.26008033]
[1738906801873,0.03726088,193.17,193.13,0.03696158]
[1738906802865,5.1762,193.14,193.13,0.03696158]
[1738906804168,9.26008033,193.16,193.13,0.03696158]
[1738906804369,5.176,193.15,193.13,0.03696158]
[1738906804572,0.03726088,193.17,193.13,0.03696158]
[1738906805575,0.03726088,193.17,193.14,9.26008033]
[1738906806076,5.21276088,193.17,193.14,9.26008033]
[1738906806272,0.03726088,193.17,193.14,9.26008033]
[1738906806668,0.03726088,193.17,193.14,14.43618033]
[1738906806873,0.03726088,193.17,193.16,9.26008033]
[1738906809778,0.03726088,193.17,193.16,14.43578033]
[1738906812075,5.1741,193.22,193.17,5.1752]
[1738906812275,5.1741,193.22,193.2,9.26008033]
[1738906814077,0.03938415,193.23,193.2,9.26008033]
[1738906815084,5.21328415,193.23,193.2,9.26008033]
[1738906816077,0.03938415,193.23,193.2,9.26008033]
[1738906816287,0.03938415,193.23,193.2,14.43468033]
[1738906816581,0.03938415,193.23,193.2,9.26008033]
[1738906817784,5.21348415,193.23,193.2,9.26008033]
[1738906818280,0.03938415,193.23,193.2,14.43468033]
[1738906818886,0.03938415,193.23,193.22,9.26008033]
[1738906819094,0.03938415,193.23,193.22,14.43418033]
[1738906823994,5.1722,193.3,193.26,14.43298033]
[1738906824995,5.20541661,193.3,193.26,14.46850459]
[1738906825497,5.1723,193.29,193.26,9.29560459]
[1738906825696,0.03321661,193.3,193.26,9.29560459]
[1738906825991,5.1728,193.28,193.26,0.03552426]
[1738906826198,5.1728,193.28,193.23,5.1738]
[1738906826199,9.26008033,193.28,193.2,9.26008033]
[1738906826393,9.26008033,193.26,193.2,9.26008033]
[1738906827298,0.03668156,193.25,193.21,0.03590517]
[1738906827793,5.1741,193.22,193.21,0.03590517]
[1738906828190,9.26008033,193.23,193.14,9.26008033]
[1738906828495,9.26008033,193.21,193.14,9.26008033]
[1738906829393,0.03792972,193.19,193.16,9.29423385]
[1738906829600,5.21292972,193.19,193.16,9.29423385]
[1738906829795,5.21292972,193.19,193.16,0.03415352]
[1738906830399,0.03792972,193.19,193.16,0.03415352]
[1738906834299,0.03792972,193.19,193.16,5.20985352]
[1738906835704,0.03792972,193.19,193.16,0.03415352]
[1738906835901,0.03792972,193.19,193.18,19.64422245]
[1738906836100,1.5713,193.28,193.18,14.46902245]
[1738906836301,1.5713,193.28,193.21,14.46902245]
[1738906836507,1.5713,193.28,193.22,5.1741]
[1738906837300,0.03520887,193.27,193.23,0.03320229]
[1738906837808,5.20800887,193.27,193.23,0.03320229]
[1738906838605,0.03520887,193.27,193.23,5.20700229]
[1738906839497,0.03520887,193.27,193.26,5.173]
[1738906852614,0.03520887,193.27,193.26,14.42060025]
[1738906858214,0.03520887,193.27,193.24,9.24760025]
[1738906858414,9.28280912,193.27,193.23,0.03320229]
[1738906858815,5.1736,193.24,193.23,0.03320229]
[1738906860520,9.24760025,193.25,193.16,9.24760025]
[1738906860722,9.24760025,193.23,193.16,9.24760025]
[1738906861016,9.24760025,193.27,193.2,9.24760025]
[1738906861520,5.20798027,193.25,193.22,0.03447092]
[1738906861721,5.20798027,193.25,193.22,9.28207117]
[1738906862318,0.03458027,193.25,193.22,9.28207117]
[1738906862718,5.1736,193.24,193.22,9.28207117]
[1738906862917,0.03458027,193.25,193.22,0.03447092]
[1738906863318,5.1738,193.23,193.22,0.03447092]
[1738906863512,9.24760025,193.23,193.16,9.24760025]
[1738906863717,1.5567,193.22,193.16,9.24760025]
[1738906863919,9.24760025,193.2,193.13,9.24760025]
[1738906864123,9.24760025,193.18,193.13,9.24760025]
[1738906864323,9.24760025,193.18,193.11,9.24760025]
[1738906864519,0.03404054,193.17,193.14,0.0380302]
[1738906865924,5.1759,193.16,193.14,0.0380302]
[1738906867621,5.176,193.15,193.14,0.0380302]
[1738906868825,5.1757,193.16,193.14,0.0380302]
[1738906869020,0.03404054,193.17,193.14,0.0380302]
[1738906869522,5.176,193.15,193.14,0.0380302]
[1738906869826,0.03404054,193.17,193.14,0.0380302]
[1738906870520,5.176,193.16,193.14,0.0380302]
[1738906871716,5.176,193.15,193.14,0.0380302]
[1738906872129,0.03404054,193.17,193.14,0.0380302]
[1738906872322,5.1757,193.16,193.14,0.0380302]
[1738906872626,0.03404054,193.17,193.14,0.0380302]
[1738906874226,5.1757,193.16,193.14,0.0380302]
[1738906874426,0.03404054,193.17,193.14,0.0380302]
[1738906875727,5.1757,193.16,193.14,0.0380302]
[1738906877023,5.176,193.15,193.14,0.0380302]
[1738906883126,5.20964054,193.17,193.14,0.0380302]
[1738906883732,0.03404054,193.17,193.14,5.2142302]
[1738906884433,0.03404054,193.17,193.14,0.0380302]
[1738906885525,5.1757,193.16,193.14,0.0380302]
[1738906885831,0.03404054,193.17,193.14,0.0380302]
[1738906886734,5.20954054,193.17,193.14,0.0380302]
[1738906889435,0.03404054,193.17,193.14,0.0380302]
[1738906889642,5.1757,193.16,193.14,0.0380302]
[1738906890239,5.20954054,193.17,193.14,0.0380302]
[1738906891838,5.1757,193.16,193.14,0.0380302]
[1738906894441,5.176,193.15,193.14,0.0380302]
[1738906898337,9.24760025,193.16,193.07,9.24760025]
[1738906898541,9.24760025,193.14,193.07,9.24760025]
[1738906899140,5.1768,193.12,193.07,9.24760025]
[1738906899338,9.24760025,193.14,193.07,9.24760025]
[1738906899543,0.03439276,193.11,193.09,9.24760025]
[1738906899739,9.24760025,193.16,193.09,9.24760025]
[1738906899944,0.03469744,193.12,193.11,9.24760025]
[1738906900337,0.03469744,193.12,193.11,14.42470025]
[1738906903145,5.1773,193.11,193.09,9.24760025]
[1738906903338,5.1773,193.11,193.07,9.24760025]
[1738906904644,5.1773,193.11,193.09,9.24760025]
[1738906909246,5.21149744,193.12,193.09,9.24760025]
[1738906909746,0.03469744,193.12,193.09,9.24760025]
[1738906909946,0.03469744,193.12,193.11,9.24760025]
[1738906911448,0.03469744,193.12,193.11,14.42470025]
[1738906912848,5.1749,193.2,193.11,9.24760025]
[1738906913051,5.1749,193.2,193.17,9.24760025]
[1738906913549,5.1744,193.21,193.17,9.24760025]
[1738906914041,0.03271414,193.21,193.17,9.2819887]
[1738906914249,0.03271414,193.21,193.19,9.24760025]
[1738906915750,21.25098316,193.28,193.2,5.1746]
[1738906915948,21.25098316,193.28,193.17,0.03438845]
[1738906915949,21.25098316,193.28,193.25,9.24760025]
[1738906916849,21.28863133,193.28,193.25,9.2859616]
[1738906917751,0.03764817,193.28,193.25,9.2859616]
[1738906917945,0.03764817,193.28,193.27,9.24760025]
[1738906919454,0.03764817,193.28,193.27,14.42040025]
[1738906920147,21.25098316,193.37,193.27,9.24760025]
[1738906920356,21.25098316,193.37,193.35,9.24760025]
[1738906921049,9.24760025,193.42,193.35,9.24760025]
[1738906921252,0.03341849,193.38,193.35,9.24760025]
[1738906922047,5.20331849,193.38,193.35,9.24760025]
[1738906922249,0.03341849,193.38,193.34,0.03616782]
[1738906922946,5.1705,193.36,193.34,0.03616782]
[1738906924041,0.03341849,193.38,193.34,0.03616782]
[1738906924246,5.1701,193.37,193.34,0.03616782]
[1738906924446,0.03341849,193.38,193.34,0.03616782]
[1738906924754,5.1706,193.35,193.34,0.03616782]
[1738906926251,6.7135,193.37,193.34,0.03616782]
[1738906926553,5.1702,193.37,193.34,0.03616782]
[1738906927548,0.03341849,193.38,193.34,0.03616782]
[1738906927549,0.03341849,193.38,193.34,6.782e-05]
[1738906927744,0.03341849,193.38,193.25,14.44255521]
[1738906927745,14.4759737,193.38,193.25,14.44255521]
[1738906927955,14.44255521,193.35,193.22,16.06195521]
[1738906928455,4.7672,193.37,193.25,14.44255521]
[1738906928857,0.03280363,193.33,193.29,0.03628987]
[1738906929354,5.20420363,193.33,193.29,0.03628987]